[Event "Titled Tuesday Blitz June 20 Early 2023"]
[White "Kvaloy, Aksel Bu"]
[Black "Rodriguez Polo, Mateo"]
[WhiteFideId "1528815"]
[BlackFideId "24509396"]
[WhiteElo "2318"]
[BlackElo "2117"]
[Result "1-0"]
[Round "2"]
[TimeControl "180+2"]
[Date "2023.06.20"]
[WhiteClock "0:00:32"]
[BlackClock "0:00:00"]
[Board "104"]

1. e4 {[%clk 0:03:00]}  e5 {[%clk 0:03:00]} 2. Nf3 {[%clk 0:02:57]}  Nc6 {[%clk 0:02:59]} 3. Nc3 {[%clk 0:02:55]}  Nf6 {[%clk 0:03:00]} 4. d4 {[%clk 0:02:56]}  exd4 {[%clk 0:03:01]} 5. Nxd4 {[%clk 0:02:56]}  Bb4 {[%clk 0:03:01]} 6. Nxc6 {[%clk 0:02:53]}  bxc6 {[%clk 0:03:02]} 7. Bd3 {[%clk 0:02:54]}  O-O {[%clk 0:03:02]} 8. O-O {[%clk 0:02:53]}  d5 {[%clk 0:03:02]} 9. Bd2 {[%clk 0:02:54]}  Bxc3 {[%clk 0:02:48]} 10. Bxc3 {[%clk 0:02:53]}  dxe4 {[%clk 0:02:48]} 11. Bxf6 {[%clk 0:02:52]}  Qxf6 {[%clk 0:02:49]} 12. Bxe4 {[%clk 0:02:53]}  Ba6 {[%clk 0:02:12]} 13. Re1 {[%clk 0:02:25]}  Qxb2 {[%clk 0:02:10]} 14. Qh5 {[%clk 0:02:24]}  g6 {[%clk 0:02:05]} 15. Qc5 {[%clk 0:02:19]}  Qf6 {[%clk 0:01:58]} 16. Qxc6 {[%clk 0:02:06]}  Qxc6 {[%clk 0:01:57]} 17. Bxc6 {[%clk 0:02:07]}  Rad8 {[%clk 0:01:38]} 18. Rad1 {[%clk 0:02:05]}  Bc4 {[%clk 0:01:33]} 19. a3 {[%clk 0:01:45]}  Be6 {[%clk 0:01:32]} 20. f3 {[%clk 0:01:44]}  Rxd1 {[%clk 0:01:17]} 21. Rxd1 {[%clk 0:01:43]}  Rb8 {[%clk 0:01:18]} 22. Bd7 {[%clk 0:01:34]}  Rb6 {[%clk 0:00:56]} 23. Kf2 {[%clk 0:01:25]}  Bxd7 {[%clk 0:00:55]} 24. Rxd7 {[%clk 0:01:26]}  Rc6 {[%clk 0:00:56]} 25. Rd8+ {[%clk 0:01:16]}  Kg7 {[%clk 0:00:54]} 26. Ra8 {[%clk 0:01:17]}  Ra6 {[%clk 0:00:37]} 27. Rc8 {[%clk 0:01:10]}  Rc6 {[%clk 0:00:37]} 28. Ra8 {[%clk 0:01:09]}  Ra6 {[%clk 0:00:33]} 29. c4 {[%clk 0:01:08]}  Rxa3 {[%clk 0:00:29]} 30. Rc8 {[%clk 0:01:07]}  Ra2+ {[%clk 0:00:27]} 31. Kg3 {[%clk 0:01:07]}  a5 {[%clk 0:00:26]} 32. Rxc7 {[%clk 0:01:07]}  a4 {[%clk 0:00:26]} 33. Ra7 {[%clk 0:01:07]}  a3 {[%clk 0:00:25]} 34. c5 {[%clk 0:01:07]}  Rc2 {[%clk 0:00:24]} 35. Rxa3 {[%clk 0:01:07]}  Rxc5 {[%clk 0:00:25]} 36. h4 {[%clk 0:01:07]}  h5 {[%clk 0:00:25]} 37. Ra4 {[%clk 0:01:05]}  Rc2 {[%clk 0:00:25]} 38. Kh3 {[%clk 0:01:03]}  Rb2 {[%clk 0:00:25]} 39. Rc4 {[%clk 0:01:02]}  Rb3 {[%clk 0:00:25]} 40. Kh2 {[%clk 0:01:02]}  Ra3 {[%clk 0:00:25]} 41. Kg1 {[%clk 0:01:02]}  Ra2 {[%clk 0:00:25]} 42. Re4 {[%clk 0:01:02]}  Kf6 {[%clk 0:00:25]} 43. Kf1 {[%clk 0:01:02]}  Kf5 {[%clk 0:00:25]} 44. Rb4 {[%clk 0:01:02]}  Rc2 {[%clk 0:00:23]} 45. Kg1 {[%clk 0:01:02]}  f6 {[%clk 0:00:20]} 46. Kh2 {[%clk 0:01:02]}  g5 {[%clk 0:00:20]} 47. Kg3 {[%clk 0:01:02]}  gxh4+ {[%clk 0:00:18]} 48. Rxh4 {[%clk 0:01:03]}  Kg5 {[%clk 0:00:18]} 49. Ra4 {[%clk 0:01:04]}  Rb2 {[%clk 0:00:16]} 50. Ra5+ {[%clk 0:01:03]}  Kg6 {[%clk 0:00:16]} 51. Kh3 {[%clk 0:01:03]}  Rb3 {[%clk 0:00:15]} 52. Ra4 {[%clk 0:01:02]}  Rc3 {[%clk 0:00:15]} 53. Rb4 {[%clk 0:01:02]}  Ra3 {[%clk 0:00:15]} 54. Rf4 {[%clk 0:01:02]}  Rb3 {[%clk 0:00:15]} 55. g3 {[%clk 0:01:03]}  Ra3 {[%clk 0:00:15]} 56. Kg2 {[%clk 0:01:01]}  Ra2+ {[%clk 0:00:15]} 57. Kg1 {[%clk 0:00:59]}  Ra1+ {[%clk 0:00:16]} 58. Kf2 {[%clk 0:00:59]}  Ra2+ {[%clk 0:00:17]} 59. Ke3 {[%clk 0:01:00]}  Rg2 {[%clk 0:00:16]} 60. g4 {[%clk 0:00:53]}  h4 {[%clk 0:00:17]} 61. Rf5 {[%clk 0:00:50]}  h3 {[%clk 0:00:13]} 62. Rh5 {[%clk 0:00:50]}  h2 {[%clk 0:00:13]} 63. Kf4 {[%clk 0:00:50]}  Ra2 {[%clk 0:00:12]} 64. Kg3 {[%clk 0:00:50]}  Ra4 {[%clk 0:00:05]} 65. Rxh2 {[%clk 0:00:49]}  Ra3 {[%clk 0:00:06]} 66. Rb2 {[%clk 0:00:49]}  Ra4 {[%clk 0:00:06]} 67. Rb3 {[%clk 0:00:50]}  Ra5 {[%clk 0:00:06]} 68. Rb4 {[%clk 0:00:49]}  Ra3 {[%clk 0:00:07]} 69. Kf4 {[%clk 0:00:50]}  Ra5 {[%clk 0:00:07]} 70. Rb6 {[%clk 0:00:50]}  Ra4+ {[%clk 0:00:07]} 71. Kg3 {[%clk 0:00:50]}  Ra3 {[%clk 0:00:08]} 72. Rb4 {[%clk 0:00:49]}  Rc3 {[%clk 0:00:08]} 73. Rf4 {[%clk 0:00:49]}  Ra3 {[%clk 0:00:08]} 74. Rb4 {[%clk 0:00:50]}  Rc3 {[%clk 0:00:08]} 75. Ra4 {[%clk 0:00:50]}  Rb3 {[%clk 0:00:08]} 76. Ra5 {[%clk 0:00:51]}  Rc3 {[%clk 0:00:08]} 77. Rf5 {[%clk 0:00:51]}  Rb3 {[%clk 0:00:09]} 78. Rf4 {[%clk 0:00:50]}  Ra3 {[%clk 0:00:09]} 79. Rd4 {[%clk 0:00:51]}  Rb3 {[%clk 0:00:09]} 80. Kf4 {[%clk 0:00:51]}  Ra3 {[%clk 0:00:10]} 81. Ke4 {[%clk 0:00:52]}  Rb3 {[%clk 0:00:10]} 82. Ra4 {[%clk 0:00:52]}  Rc3 {[%clk 0:00:10]} 83. f4 {[%clk 0:00:50]}  Rc1 {[%clk 0:00:10]} 84. Ra3 {[%clk 0:00:48]}  Re1+ {[%clk 0:00:10]} 85. Re3 {[%clk 0:00:48]}  Rg1 {[%clk 0:00:10]} 86. Kf3 {[%clk 0:00:40]}  Rf1+ {[%clk 0:00:09]} 87. Kg3 {[%clk 0:00:41]}  Rg1+ {[%clk 0:00:09]} 88. Kh3 {[%clk 0:00:42]}  Rf1 {[%clk 0:00:07]} 89. Re4 {[%clk 0:00:42]}  Rf3+ {[%clk 0:00:04]} 90. Kg2 {[%clk 0:00:42]}  Ra3 {[%clk 0:00:04]} 91. Kf2 {[%clk 0:00:42]}  Ra2+ {[%clk 0:00:05]} 92. Kf3 {[%clk 0:00:42]}  Ra3+ {[%clk 0:00:05]} 93. Re3 {[%clk 0:00:43]}  Ra4 {[%clk 0:00:06]} 94. Kg3 {[%clk 0:00:38]}  Ra2 {[%clk 0:00:06]} 95. Re8 {[%clk 0:00:38]}  Ra4 {[%clk 0:00:06]} 96. Re7 {[%clk 0:00:35]}  Ra3+ {[%clk 0:00:06]} 97. Kh4 {[%clk 0:00:35]}  Ra4 {[%clk 0:00:03]} 98. f5+ {[%clk 0:00:35]}  Kh6 {[%clk 0:00:04]} 99. Re6 {[%clk 0:00:30]}  Kg7 {[%clk 0:00:04]} 100. Kh5 {[%clk 0:00:31]}  Ra1 {[%clk 0:00:04]} 101. Re7+ {[%clk 0:00:31]}  Kf8 {[%clk 0:00:04]} 102. Rb7 {[%clk 0:00:31]}  Rg1 {[%clk 0:00:03]} 103. Ra7 {[%clk 0:00:26]}  Rg2 {[%clk 0:00:02]} 104. Kg6 {[%clk 0:00:26]}  Rxg4+ {[%clk 0:00:02]} 105. Kxf6 {[%clk 0:00:27]}  Ke8 {[%clk 0:00:02]} 106. Ra8+ {[%clk 0:00:28]}  Kd7 {[%clk 0:00:02]} 107. Kf7 {[%clk 0:00:28]}  Rg1 {[%clk 0:00:03]} 108. f6 {[%clk 0:00:29]}  Rh1 {[%clk 0:00:02]} 109. Ra4 {[%clk 0:00:29]}  Rh6 {[%clk 0:00:02]} 110. Rd4+ {[%clk 0:00:30]}  Kc8 {[%clk 0:00:02]} 111. Kg7 {[%clk 0:00:30]}  Rh1 {[%clk 0:00:02]} 112. f7 {[%clk 0:00:31]}  Rg1+ {[%clk 0:00:03]} 113. Kf8 {[%clk 0:00:31]}  Rf1 {[%clk 0:00:04]} 114. Rg4 {[%clk 0:00:30]}  Kd7 {[%clk 0:00:03]} 115. Kg7 {[%clk 0:00:31]}  Ke7 {[%clk 0:00:03]} 116. Re4+ {[%clk 0:00:31]}  Kd8 {[%clk 0:00:00]} 117. f8=Q+ {[%clk 0:00:32]} 1-0


[Site "https://www.chess.com"]

[Event "Titled Tuesday Blitz June 20 Early 2023"]
[White "Koshulyan, Egor A."]
[Black "Zaichenko, Daria"]
[WhiteFideId "24237000"]
[BlackFideId "4197453"]
[WhiteElo "2216"]
[BlackElo "2039"]
[Result "1-0"]
[Round "2"]
[TimeControl "180+2"]
[Date "2023.06.20"]
[WhiteClock "0:00:46"]
[BlackClock "0:00:57"]
[Board "107"]

1. e4 {[%clk 0:02:56]}  c5 {[%clk 0:02:59]} 2. Nf3 {[%clk 0:02:56]}  Nc6 {[%clk 0:02:59]} 3. d4 {[%clk 0:02:56]}  cxd4 {[%clk 0:02:58]} 4. Nxd4 {[%clk 0:02:57]}  Nf6 {[%clk 0:02:59]} 5. Nc3 {[%clk 0:02:57]}  d6 {[%clk 0:02:59]} 6. Bg5 {[%clk 0:02:56]}  Bd7 {[%clk 0:02:56]} 7. Qd2 {[%clk 0:02:55]}  a6 {[%clk 0:02:56]} 8. O-O-O {[%clk 0:02:55]}  e6 {[%clk 0:02:57]} 9. f3 {[%clk 0:02:50]}  Be7 {[%clk 0:02:56]} 10. h4 {[%clk 0:02:46]}  b5 {[%clk 0:02:55]} 11. Nxc6 {[%clk 0:02:45]}  Bxc6 {[%clk 0:02:55]} 12. Ne2 {[%clk 0:02:46]}  d5 {[%clk 0:02:48]} 13. Nd4 {[%clk 0:02:40]}  Bb7 {[%clk 0:02:47]} 14. e5 {[%clk 0:02:27]}  Nd7 {[%clk 0:02:36]} 15. f4 {[%clk 0:02:27]}  Bxg5 {[%clk 0:02:33]} 16. hxg5 {[%clk 0:02:27]}  Nc5 {[%clk 0:02:33]} 17. f5 {[%clk 0:02:25]}  Ne4 {[%clk 0:02:31]} 18. Qb4 {[%clk 0:01:48]}  Qxg5+ {[%clk 0:02:22]} 19. Kb1 {[%clk 0:01:47]}  Nf2 {[%clk 0:02:11]} 20. Bxb5+ {[%clk 0:01:47]}  axb5 {[%clk 0:02:08]} 21. Qxb5+ {[%clk 0:01:48]}  Kf8 {[%clk 0:02:00]} 22. Qxb7 {[%clk 0:01:45]}  Re8 {[%clk 0:01:59]} 23. Rdf1 {[%clk 0:01:13]}  Qd2 {[%clk 0:01:37]} 24. fxe6 {[%clk 0:01:08]}  fxe6 {[%clk 0:01:35]} 25. Nb3 {[%clk 0:00:56]}  Qe2 {[%clk 0:01:26]} 26. Qa7 {[%clk 0:00:48]}  Re7 {[%clk 0:00:57]} 27. Rxf2+ {[%clk 0:00:46]} 1-0


[Site "https://www.chess.com"]

[Event "Titled Tuesday Blitz June 20 Early 2023"]
[White "Druska, Juraj"]
[Black "Larina, Maria"]
[WhiteFideId "14915650"]
[BlackFideId "24113182"]
[WhiteElo "2415"]
[BlackElo "1848"]
[Result "1-0"]
[Round "2"]
[TimeControl "180+2"]
[Date "2023.06.20"]
[WhiteClock "0:00:14"]
[BlackClock "0:00:00"]
[Board "108"]

1. b4 {[%clk 0:02:59]}  e5 {[%clk 0:02:51]} 2. Bb2 {[%clk 0:02:58]}  d6 {[%clk 0:02:43]} 3. e3 {[%clk 0:02:55]}  g6 {[%clk 0:02:40]} 4. d4 {[%clk 0:02:54]}  Nd7 {[%clk 0:02:27]} 5. Nf3 {[%clk 0:02:53]}  Bg7 {[%clk 0:02:27]} 6. g3 {[%clk 0:02:52]}  Nh6 {[%clk 0:02:26]} 7. Bg2 {[%clk 0:02:52]}  O-O {[%clk 0:02:24]} 8. O-O {[%clk 0:02:53]}  f6 {[%clk 0:02:07]} 9. c4 {[%clk 0:02:51]}  Nf7 {[%clk 0:02:02]} 10. Nc3 {[%clk 0:02:41]}  c6 {[%clk 0:01:53]} 11. a4 {[%clk 0:02:40]}  e4 {[%clk 0:01:45]} 12. Nd2 {[%clk 0:02:38]}  f5 {[%clk 0:01:43]} 13. c5 {[%clk 0:02:25]}  d5 {[%clk 0:01:38]} 14. b5 {[%clk 0:02:25]}  g5 {[%clk 0:01:29]} 15. a5 {[%clk 0:02:23]}  a6 {[%clk 0:01:19]} 16. bxc6 {[%clk 0:02:21]}  bxc6 {[%clk 0:01:20]} 17. Na4 {[%clk 0:02:20]}  Rb8 {[%clk 0:01:17]} 18. Nb6 {[%clk 0:02:21]}  Nf6 {[%clk 0:01:09]} 19. Qa4 {[%clk 0:02:01]}  Qc7 {[%clk 0:01:02]} 20. Rfb1 {[%clk 0:01:59]}  f4 {[%clk 0:01:00]} 21. Bc1 {[%clk 0:01:50]}  fxe3 {[%clk 0:00:48]} 22. fxe3 {[%clk 0:01:48]}  Ng4 {[%clk 0:00:48]} 23. Nf1 {[%clk 0:01:47]}  Nfh6 {[%clk 0:00:32]} 24. Nxc8 {[%clk 0:01:44]}  Rfxc8 {[%clk 0:00:24]} 25. Rb6 {[%clk 0:01:42]}  Ra8 {[%clk 0:00:21]} 26. Rab1 {[%clk 0:01:41]}  Ra7 {[%clk 0:00:20]} 27. Bh3 {[%clk 0:01:31]}  Qf7 {[%clk 0:00:19]} 28. Qc2 {[%clk 0:01:26]}  Rf8 {[%clk 0:00:16]} 29. Rb8 {[%clk 0:01:13]}  Ra8 {[%clk 0:00:14]} 30. Rxa8 {[%clk 0:01:06]}  Rxa8 {[%clk 0:00:15]} 31. Qe2 {[%clk 0:01:06]}  Qe6 {[%clk 0:00:13]} 32. Rb6 {[%clk 0:01:04]}  Rf8 {[%clk 0:00:12]} 33. Rxa6 {[%clk 0:00:57]}  Qf6 {[%clk 0:00:12]} 34. Rb6 {[%clk 0:00:52]}  Nf2 {[%clk 0:00:11]} 35. Bg2 {[%clk 0:00:46]}  Nd3 {[%clk 0:00:12]} 36. Bd2 {[%clk 0:00:42]}  g4 {[%clk 0:00:10]} 37. a6 {[%clk 0:00:41]}  Nf5 {[%clk 0:00:07]} 38. a7 {[%clk 0:00:38]}  Nxd4 {[%clk 0:00:08]} 39. exd4 {[%clk 0:00:37]}  Qxd4+ {[%clk 0:00:09]} 40. Be3 {[%clk 0:00:38]}  Qa1 {[%clk 0:00:08]} 41. Rb8 {[%clk 0:00:35]}  Qxa7 {[%clk 0:00:07]} 42. Rxf8+ {[%clk 0:00:35]}  Bxf8 {[%clk 0:00:08]} 43. Qxg4+ {[%clk 0:00:35]}  Bg7 {[%clk 0:00:08]} 44. Bd4 {[%clk 0:00:35]}  Qf7 {[%clk 0:00:01]} 45. Bh3 {[%clk 0:00:25]}  Qf8 {[%clk 0:00:01]} 46. Qe6+ {[%clk 0:00:21]}  Kh8 {[%clk 0:00:01]} 47. Bxg7+ {[%clk 0:00:19]}  Qxg7 {[%clk 0:00:02]} 48. Qc8+ {[%clk 0:00:16]}  Qg8 {[%clk 0:00:02]} 49. Qxc6 {[%clk 0:00:16]}  Ne5 {[%clk 0:00:01]} 50. Qf6+ {[%clk 0:00:16]}  Qg7 {[%clk 0:00:01]} 51. Qd8+ {[%clk 0:00:14]}  Qg8 {[%clk 0:00:02]} 52. Qxg8+ {[%clk 0:00:14]}  Kxg8 {[%clk 0:00:02]} 53. Be6+ {[%clk 0:00:14]}  Kg7 {[%clk 0:00:01]} 54. Bxd5 {[%clk 0:00:14]}  Nd7 {[%clk 0:00:00]} 55. c6 {[%clk 0:00:14]} 1-0


[Site "https://www.chess.com"]

[Event "Titled Tuesday Blitz June 20 Early 2023"]
[White "Kev4444444444"]
[Black "Jia, Haoxiang"]
[BlackFideId "8602999"]
[WhiteElo "2172"]
[BlackElo "2645"]
[Result "1-0"]
[Round "2"]
[TimeControl "180+2"]
[Date "2023.06.20"]
[WhiteClock "0:00:41"]
[BlackClock "0:00:55"]
[Board "109"]

1. d4 {[%clk 0:03:00]}  Nf6 {[%clk 0:02:58]} 2. c4 {[%clk 0:03:01]}  g6 {[%clk 0:02:57]} 3. g3 {[%clk 0:03:01]}  Bg7 {[%clk 0:02:52]} 4. Bg2 {[%clk 0:03:01]}  O-O {[%clk 0:02:52]} 5. Nc3 {[%clk 0:03:02]}  d6 {[%clk 0:02:51]} 6. Nf3 {[%clk 0:03:02]}  Nc6 {[%clk 0:02:50]} 7. O-O {[%clk 0:03:02]}  a6 {[%clk 0:02:49]} 8. b3 {[%clk 0:02:40]}  Rb8 {[%clk 0:02:48]} 9. d5 {[%clk 0:02:40]}  Na5 {[%clk 0:02:45]} 10. Bg5 {[%clk 0:02:40]}  b5 {[%clk 0:02:42]} 11. cxb5 {[%clk 0:02:38]}  axb5 {[%clk 0:02:42]} 12. b4 {[%clk 0:02:39]}  Nc4 {[%clk 0:02:41]} 13. Qb3 {[%clk 0:02:39]}  Bd7 {[%clk 0:02:36]} 14. a4 {[%clk 0:02:36]}  Nb6 {[%clk 0:02:04]} 15. axb5 {[%clk 0:02:14]}  e6 {[%clk 0:02:02]} 16. Nd4 {[%clk 0:02:06]}  exd5 {[%clk 0:01:58]} 17. Nxd5 {[%clk 0:01:57]}  Nbxd5 {[%clk 0:01:57]} 18. Bxd5 {[%clk 0:01:57]}  Bxb5 {[%clk 0:01:51]} 19. Nxb5 {[%clk 0:01:48]}  Rxb5 {[%clk 0:01:50]} 20. Ra5 {[%clk 0:01:39]}  Qb8 {[%clk 0:01:41]} 21. Rxb5 {[%clk 0:01:28]}  Qxb5 {[%clk 0:01:41]} 22. Bxf6 {[%clk 0:01:27]}  Bxf6 {[%clk 0:01:41]} 23. e3 {[%clk 0:01:19]}  Kg7 {[%clk 0:01:40]} 24. Rc1 {[%clk 0:01:15]}  Rc8 {[%clk 0:01:33]} 25. Bxf7 {[%clk 0:01:13]}  c5 {[%clk 0:01:29]} 26. Be6 {[%clk 0:01:03]}  Rb8 {[%clk 0:01:26]} 27. Qd5 {[%clk 0:00:54]}  cxb4 {[%clk 0:01:14]} 28. Rc7+ {[%clk 0:00:52]}  Kh8 {[%clk 0:01:11]} 29. Qxd6 {[%clk 0:00:48]}  Qe5 {[%clk 0:01:04]} 30. Qd7 {[%clk 0:00:44]}  Bg7 {[%clk 0:00:55]} 31. Rc8+ {[%clk 0:00:41]} 1-0


[Site "https://www.chess.com"]

[Event "Titled Tuesday Blitz June 20 Early 2023"]
[White "Ashraf, Artin"]
[Black "Baruch, Liam"]
[WhiteFideId "22514805"]
[BlackFideId "14322064"]
[WhiteElo "2224"]
[BlackElo "2123"]
[Result "1-0"]
[Round "2"]
[TimeControl "180+2"]
[Date "2023.06.20"]
[WhiteClock "0:00:19"]
[BlackClock "0:00:35"]
[Board "110"]

1. c4 {[%clk 0:03:00]}  e6 {[%clk 0:03:00]} 2. Nf3 {[%clk 0:02:53]}  d5 {[%clk 0:03:00]} 3. e3 {[%clk 0:02:54]}  Nf6 {[%clk 0:03:00]} 4. Nc3 {[%clk 0:02:52]}  c5 {[%clk 0:03:00]} 5. d4 {[%clk 0:02:52]}  Nc6 {[%clk 0:03:00]} 6. a3 {[%clk 0:02:44]}  Be7 {[%clk 0:02:59]} 7. dxc5 {[%clk 0:02:42]}  Bxc5 {[%clk 0:02:59]} 8. b4 {[%clk 0:02:43]}  Be7 {[%clk 0:02:56]} 9. Bb2 {[%clk 0:02:33]}  O-O {[%clk 0:02:56]} 10. Qc2 {[%clk 0:02:30]}  b6 {[%clk 0:02:35]} 11. cxd5 {[%clk 0:01:49]}  Nxd5 {[%clk 0:02:35]} 12. Rd1 {[%clk 0:01:39]}  Bd6 {[%clk 0:01:55]} 13. Nxd5 {[%clk 0:01:34]}  exd5 {[%clk 0:01:53]} 14. Qxc6 {[%clk 0:01:33]}  Be6 {[%clk 0:01:46]} 15. Qc3 {[%clk 0:01:25]}  f6 {[%clk 0:01:46]} 16. Be2 {[%clk 0:01:20]}  Rc8 {[%clk 0:01:45]} 17. Qd2 {[%clk 0:01:21]}  Kh8 {[%clk 0:01:42]} 18. O-O {[%clk 0:01:19]}  Qc7 {[%clk 0:01:36]} 19. h3 {[%clk 0:01:07]}  Qd7 {[%clk 0:01:31]} 20. Nd4 {[%clk 0:01:05]}  Bf7 {[%clk 0:01:30]} 21. Bg4 {[%clk 0:01:03]}  Qe8 {[%clk 0:01:14]} 22. Bxc8 {[%clk 0:01:00]}  Qxc8 {[%clk 0:01:15]} 23. Rc1 {[%clk 0:00:57]}  Qd7 {[%clk 0:01:13]} 24. Qc2 {[%clk 0:00:57]}  Bb8 {[%clk 0:01:13]} 25. Qc6 {[%clk 0:00:56]}  Qe7 {[%clk 0:01:09]} 26. Nf5 {[%clk 0:00:55]}  Qe4 {[%clk 0:01:04]} 27. Qxf6 {[%clk 0:00:46]}  Rg8 {[%clk 0:00:38]} 28. Rc8 {[%clk 0:00:43]}  Qxg2+ {[%clk 0:00:25]} 29. Kxg2 {[%clk 0:00:39]}  gxf6+ {[%clk 0:00:26]} 30. Rxg8+ {[%clk 0:00:39]}  Kxg8 {[%clk 0:00:27]} 31. Nh6+ {[%clk 0:00:37]}  Kg7 {[%clk 0:00:27]} 32. Nxf7 {[%clk 0:00:38]}  Kxf7 {[%clk 0:00:28]} 33. Rc1 {[%clk 0:00:38]}  Ke7 {[%clk 0:00:28]} 34. Rc8 {[%clk 0:00:38]}  Bd6 {[%clk 0:00:28]} 35. Ra8 {[%clk 0:00:39]}  a5 {[%clk 0:00:28]} 36. Ra7+ {[%clk 0:00:40]}  Ke6 {[%clk 0:00:28]} 37. bxa5 {[%clk 0:00:40]}  bxa5 {[%clk 0:00:27]} 38. Ra6 {[%clk 0:00:41]}  h5 {[%clk 0:00:27]} 39. Bxf6 {[%clk 0:00:41]}  h4 {[%clk 0:00:25]} 40. Bxh4 {[%clk 0:00:39]}  a4 {[%clk 0:00:25]} 41. Bg3 {[%clk 0:00:39]}  d4 {[%clk 0:00:26]} 42. Rxd6+ {[%clk 0:00:38]}  Kf5 {[%clk 0:00:27]} 43. Rxd4 {[%clk 0:00:39]}  Kg5 {[%clk 0:00:27]} 44. Rxa4 {[%clk 0:00:39]}  Kf5 {[%clk 0:00:28]} 45. Rd4 {[%clk 0:00:36]}  Kg5 {[%clk 0:00:29]} 46. a4 {[%clk 0:00:35]}  Kf5 {[%clk 0:00:29]} 47. a5 {[%clk 0:00:36]}  Kg5 {[%clk 0:00:30]} 48. a6 {[%clk 0:00:37]}  Kf5 {[%clk 0:00:31]} 49. a7 {[%clk 0:00:38]}  Kg5 {[%clk 0:00:32]} 50. a8=Q {[%clk 0:00:39]}  Kf5 {[%clk 0:00:33]} 51. Qe4+ {[%clk 0:00:38]}  Kg5 {[%clk 0:00:34]} 52. Bh4+ {[%clk 0:00:36]}  Kh5 {[%clk 0:00:34]} 53. Rd5+ {[%clk 0:00:36]}  Kh6 {[%clk 0:00:34]} 54. Qe6+ {[%clk 0:00:36]}  Kg7 {[%clk 0:00:35]} 55. Bf6+ {[%clk 0:00:35]}  Kf8 {[%clk 0:00:36]} 56. Bg5 {[%clk 0:00:28]}  Kg7 {[%clk 0:00:35]} 57. h4 {[%clk 0:00:28]}  Kh8 {[%clk 0:00:35]} 58. h5 {[%clk 0:00:29]}  Kg7 {[%clk 0:00:35]} 59. Rd7+ {[%clk 0:00:26]}  Kh8 {[%clk 0:00:35]} 60. Qf5 {[%clk 0:00:20]}  Kg8 {[%clk 0:00:35]} 61. h6 {[%clk 0:00:21]}  Kh8 {[%clk 0:00:35]} 62. Bf6+ {[%clk 0:00:20]}  Kg8 {[%clk 0:00:35]} 63. h7+ {[%clk 0:00:20]}  Kf8 {[%clk 0:00:35]} 64. h8=Q# {[%clk 0:00:19]} 1-0


[Site "https://www.chess.com"]

[Event "Titled Tuesday Blitz June 20 Early 2023"]
[White "luachess1"]
[Black "Fiorito, Joaquin"]
[BlackFideId "180173"]
[WhiteElo "1618"]
[BlackElo "2199"]
[Result "0-1"]
[Round "2"]
[TimeControl "180+2"]
[Date "2023.06.20"]
[WhiteClock "0:00:00"]
[BlackClock "0:02:01"]
[Board "113"]

1. d4 {[%clk 0:03:00]}  Nf6 {[%clk 0:02:59]} 2. c4 {[%clk 0:02:59]}  e6 {[%clk 0:03:00]} 3. Nc3 {[%clk 0:02:59]}  Bb4 {[%clk 0:02:59]} 4. Nf3 {[%clk 0:02:58]}  d5 {[%clk 0:02:59]} 5. e3 {[%clk 0:02:57]}  O-O {[%clk 0:02:58]} 6. Qc2 {[%clk 0:02:53]}  b6 {[%clk 0:02:52]} 7. Be2 {[%clk 0:02:47]}  Bb7 {[%clk 0:02:52]} 8. O-O {[%clk 0:02:47]}  Nbd7 {[%clk 0:02:52]} 9. a3 {[%clk 0:02:44]}  Bd6 {[%clk 0:02:49]} 10. b4 {[%clk 0:02:35]}  dxc4 {[%clk 0:02:36]} 11. Nb5 {[%clk 0:02:12]}  Be7 {[%clk 0:02:23]} 12. Qxc4 {[%clk 0:01:59]}  a6 {[%clk 0:02:22]} 13. Nc3 {[%clk 0:01:49]}  Rc8 {[%clk 0:02:22]} 14. Qb3 {[%clk 0:01:46]}  Bd6 {[%clk 0:02:17]} 15. Bb2 {[%clk 0:01:38]}  Qe7 {[%clk 0:02:16]} 16. Rac1 {[%clk 0:01:35]}  e5 {[%clk 0:02:10]} 17. dxe5 {[%clk 0:01:26]}  Nxe5 {[%clk 0:02:10]} 18. Nd4 {[%clk 0:00:06]}  Neg4 {[%clk 0:02:07]} 19. Bxg4 {[%clk 0:00:04]}  Nxg4 {[%clk 0:02:07]} 20. Nf5 {[%clk 0:00:03]}  Bxh2+ {[%clk 0:02:01]} 21. Kh1 {[%clk 0:00:03]}  Qg5 {[%clk 0:02:01]} 22. Ng3 {[%clk 0:00:00]}  Bxg3 {[%clk 0:02:01]} 0-1


[Site "https://www.chess.com"]